Cogmind - Beta 14 @@@ ROGUE MODE // 2025.04.25 @ 20:59:36 Player: Desos Result: Destroyed by Piercing Trap Performance ------------- Evolutions (0) 0 Regions Visited (2) 400 Robots Destroyed (32) 160 Value Destroyed (748) 748 Prototype IDs (0) 0 Alien Tech Used (0) 0 Bonus (0) 0 TOTAL SCORE: 1308 Bonus ------- None Cogmind --------- Core Integrity 0/250 Matter 300/300 Energy 248/250 System Corruption 0% Temperature Cool (0) Movement Rolling (115) Ox1 Location -10/Subcaves Parts ------- > --- POWER (1) -------- Ion Engine > --- PROPULSION (2) --- Compact Wheel Compact Wheel > --- UTILITY (2) ------ High-capacity Storage Unit Structural Scanner > --- WEAPON (2) ------- Grenade Launcher > --- INVENTORY (20) --- Ion Engine Light Ion Engine Light Treads Light Treads Compact Wheel Compact Wheel High-capacity Battery (250) Medium Matter Pod (100) Medium Matter Pod (85) Medium Matter Pod (0) Medium Matter Pod (0) Signal Interpreter Targeting Computer Weapon Shielding Trap Extractor (3/4 Blade) EM Pulse Gun EM Pulse Gun EM Pulse Gun Shotgun Shotgun Peak State ------------ > --- POWER ------------ Ion Engine > --- PROPULSION ------- Compact Wheel Compact Wheel > --- UTILITY ---------- High-capacity Storage Unit Structural Scanner > --- WEAPON ----------- Shotgun Grenade Launcher > --- INVENTORY -------- Light Treads Light Treads Wheel Wheel Compact Wheel Compact Wheel Compact Wheel Medium Matter Pod Medium Matter Pod Medium Matter Pod Medium Matter Pod Weapon Shielding Trap Extractor Trap Extractor Trap Extractor Trap Extractor EM Pulse Gun [Rating: 10] Favorites ----------- Power Ion Engine Engine Ion Engine Propulsion Compact Wheel Treads Light Treads Wheel Compact Wheel Utility High-capacity Storage Unit Device Structural Scanner Storage High-capacity Storage Unit Protection Weapon Shielding Weapon EM Pulse Gun Energy Gun EM Pulse Gun Ballistic Gun Shotgun Ballistic Cannon Light Cannon Launcher Grenade Launcher Build | -11 -10 -10 ------- Run | Yrd Mat Sub Slots Evolved . | . . . Power . | . . . Propulsion . | . . . Utility . | . . . Weapon . | . . . Parts Attached 42 | 6 35 1 Power 3 | 1 2 . Engine 3 | 1 2 . Core . | . . . Reactor . | . . . Propulsion 18 | 2 16 . Treads 8 | . 8 . Leg . | . . . Wheel 10 | 2 8 . Hover . | . . . Flight . | . . . Utility 8 | 1 7 . Device 5 | . 5 . Storage 2 | 1 1 . Processor . | . . . Hackware . | . . . Protection 1 | . 1 . Artifact . | . . . Weapon 13 | 2 10 1 Energy Gun 6 | 1 5 . Energy Cannon . | . . . Ballistic Gun 2 | 1 1 . Ballistic Cannon 1 | . 1 . Launcher 4 | . 3 1 Special Weapon . | . . . Impact Weapon . | . . . Slashing Weapon . | . . . Piercing Weapon . | . . . Special Melee Weapon . | . . . Unidentified Prototypes . | . . . Parts Lost 6 | . 5 1 Power 1 | . 1 . Propulsion 1 | . 1 . Utility 1 | . 1 . Weapon 3 | . 2 1 Highest Loss Streak 3 | . 3 1 To Critical Strikes . | . . . Average Slot Usage (%) 97 | . 97 96 Engine 13 | . 13 14 Treads 5 | . 5 . Wheel 22 | . 21 28 Device 10 | . 9 14 Storage 14 | . 14 14 Protection 3 | . 3 . Energy Gun 15 | . 15 15 Ballistic Gun 3 | . 3 . Ballistic Cannon 4 | . 4 . Launcher 2 | . 2 10 Peak Build Rating 10 | 6 10 9 Average Rating 8 | 2 8 8 On Entrance 5 | . 6 9 Naked Turns . | . . . Heaviest Build 52 | 13 52 51 Greatest Support 40 | 32 40 32 Greatest Overweight (x) 3 | 1 3 1 Average Overweight (x) . | . . 1 Largest Inventory Capacity 20 | 8 20 20 Average Capacity 16 | 6 16 20 Most Carried 20 | 5 20 20 Average Carried 15 | 2 15 20 Final Capacity 20 | 8 20 20 Final Carried 20 | 3 20 20 Class Distribution -------------------- 100% | Mutant Dominant Class ---------------- Mutant | -10/Materials Mutant | -10/Subcaves Resources | -11 -10 -10 ----------- Run | Yrd Mat Sub Matter Collected 1106 | 246 689 171 Remotely . | . . . Salvage Created 711 | . 602 109 Parts 48 | . 43 5 Haulers Intercepted 1 | . 1 . Recyclers Shooed . | . . . Parts Field Recycled . | . . . Retrieved Matter . | . . . Parts Self-Destructed . | . . . Prevented . | . . . Kills | -11 -10 -10 ------- Run | Yrd Mat Sub Combat Hostiles Destroyed 21 | . 17 4 Guns 7 | . 6 1 Cannons 2 | . 2 . AOE 12 | . 9 3 Classes Destroyed 8 | . 7 1 Worker 3 | . 3 . Builder 3 | . 3 . Hauler 1 | . 1 . Recycler 1 | . 1 . Watcher 3 | . 3 . Swarmer 5 | . 5 . Grunt 12 | . 12 . Subdweller 4 | . . 4 Best Kill Streak 12 | . 12 2 Combat Bots Only 7 | . 7 2 Max Kills in Single Turn 3 | . 3 2 Gunslinging . | . . . Exploded 2 | . 1 2 Melee . | . . . Uniques/NPCs Destroyed . | . . . Combat | -11 -10 -10 -------- Run | Yrd Mat Sub Hostile Shots Fired 124 | . 114 10 Missed 35 | . 32 3 Damage Taken 1045 | . 863 182 Core 254 | . 156 98 Absorbed by Shields . | . . . Redirected to Shielding 26 | . 26 . Core Remaining (%) 100 | 100 . . Volleys Fired 67 | . 62 5 Largest 2 | . 2 2 Hottest 80 | . 80 70 Shots Fired 112 | . 103 9 Gun 74 | . 70 4 Cannon 22 | . 22 . Launcher 16 | . 11 5 Special . | . . . Kinetic 39 | . 39 . Thermal . | . . . Explosive 16 | . 11 5 Electromagnetic 57 | . 53 4 Robot Hit Streak 7 | . 7 3 Robot Miss Streak 6 | . 6 1 Penetration Max . | . . . Secondary Targets 1 | . 1 . Max Gunslinging Chain 1 | . 1 . Shots Hit Robots 57 | . 51 6 Core Hits 47 | . 41 6 Critical Kills . | . . . Critical Parts Destroyed 1 | . 1 . Critical Strikes 1 | . 1 . Destroy 1 | . 1 . Melee Attacks . | . . . Impact . | . . . Slashing . | . . . Piercing . | . . . Sneak Attacks . | . . . Combat Hostiles . | . . . Follow-up Attacks . | . . . Damage Inflicted 1977 | . 1554 423 Guns 630 | . 595 35 Cannons 126 | . 126 . Explosions 1221 | . 833 388 Melee . | . . . Ramming . | . . . Kinetic 356 | . 356 . Thermal 30 | . 30 . Explosive 1191 | . 803 388 Electromagnetic 400 | . 365 35 Impact . | . . . Slashing . | . . . Piercing . | . . . Highest Corruption . | . . . Average Corruption . | . . . Corruption Purged . | . . . Corruption Blocked . | . . . Overload Shots . | . . . Overflow Damage 6 | . 6 . Projectiles . | . . . Explosions 6 | . 6 . Melee . | . . . Knockbacks 2 | . 2 . Impact . | . . . Kinetic 2 | . 2 . Secondary . | . . . Self-Inflicted Damage 20 | . 20 . Shots 1 | . 1 . Rammed . | . . . Targets Rammed . | . . . Kicked . | . . . Crushed . | . . . Highest Temperature 166 | . 166 . Average Temperature 36 | . 36 . Received Heat Transfer 300 | . 255 45 Siege Activations . | . . . Robots Corrupted . | . . . Combat Hostiles . | . . . Parts Fried 2 | . 2 . Impact Corruptions . | . . . Robots Melted . | . . . Combat Hostiles . | . . . Parts Melted . | . . . Heat Transferred . | . . . Parts Sabotaged . | . . . Parts Stolen . | . . . Parts Stripped . | . . . Power Chain Reactions 1 | . 1 . Alert | -11 -10 -10 ------- Run | Yrd Mat Sub Peak Influence 347 | . 347 . Initial . | . . . Average 183 | . 188 . Maximum Alert Level 1 | . 1 . Low Security (%) 35 | 100 34 . Level 1 64 | . 65 . Level 2 . | . . . Level 3 . | . . . Level 4 . | . . . Level 5 . | . . . High Security . | . . . Max Security . | . . . Squads Dispatched 4 | . 4 . Investigation 2 | . 2 . Extermination . | . . . Reinforcement 2 | . 2 . Assault . | . . . Garrison . | . . . Intercept . | . . . Searches Triggered . | . . . Construction Impeded . | . . . Haulers Reinforced . | . . . Active Scanning Responses . | . . . Cargo Convoy Interrupts . | . . . Stealth | -11 -10 -10 --------- Run | Yrd Mat Sub Distress Signals 1 | . 1 . Communications Jammed . | . . . Distress Signals . | . . . Times Spotted 32 | . 28 4 Peak Tracking Total 7 | . 7 2 Tactical Retreats . | . . . Traps | -11 -10 -10 ------- Run | Yrd Mat Sub Traps Triggered 5 | . 4 1 Indirectly . | . . . Trap Hack Attempts . | . . . Triggered . | . . . Disarmed . | . . . Reprogrammed 4 | . 4 . Reused . | . . . Traps Extracted 3 | . 3 . Installed . | . . . Triggered . | . . . Most Traps Carried 3 | . 3 3 Machines | -11 -10 -10 ---------- Run | Yrd Mat Sub Machines Disabled 4 | . 4 . Max in Single Turn 1 | . 1 . Machines Repaired . | . . . Machines Dismantled . | . . . Machines Sabotaged . | . . . Overloaded Fab Kills . | . . . Hacking | -11 -10 -10 --------- Run | Yrd Mat Sub Machines Accessed 6 | . 6 . Terminals 3 | . 3 . Fabricators . | . . . Repair Stations 1 | . 1 . Recycling Units 2 | . 2 . Scanalyzers . | . . . Garrison Access . | . . . Total Hacks 13 | . 13 . Successful 9 | . 9 . Failed 4 | . 4 . Catastrophic 2 | . 2 . Database Lockouts . | . . . Manual 9 | . 9 . Terminals 5 | . 5 . Fabricators . | . . . Repair Stations 2 | . 2 . Recycling Units 6 | . 6 . Scanalyzers . | . . . Garrison Access . | . . . Terminal Hacks 2 | . 2 . Reprogram Traps 1 | . 1 . Zone Layout 1 | . 1 . Fabricator Hacks . | . . . Repair Station Hacks 1 | . 1 . Scan Component 1 | . 1 . Recycling Unit Hacks . | . . . Scanalyzer . | . . . Garrison Access Hacks . | . . . Unauthorized Hacks 6 | . 6 . Terminals 2 | . 2 . Assimilate 1 | . 1 . Operators 1 | . 1 . Fabricators . | . . . Repair Stations . | . . . Recycling Units 4 | . 4 . Reject 2 | . 2 . Recyclers 1 | . 1 . Mask 1 | . 1 . Scanalyzers . | . . . Garrison Access . | . . . Data Cores Recovered . | . . . Used . | . . . Hacking Detections 5 | . 5 . Full Trace Events . | . . . Feedback Events . | . . . Feedback Blocked . | . . . Robot Schematics Acquired . | . . . Robots Built . | . . . Authchips . | . . . Time . | . . . Total Robot Build Rating . | . . . Part Schematics Acquired . | . . . Parts Built . | . . . Authchips . | . . . Time . | . . . Total Part Build Rating . | . . . Parts Repaired . | . . . Time . | . . . Parts Recycled . | . . . Recycled Matter . | . . . Retrieved Matter . | . . . Retrieved Components . | . . . Parts Scanalyzed . | . . . Part Schematics Acquired . | . . . Parts Damaged . | . . . Bothacking | -11 -10 -10 ------------ Run | Yrd Mat Sub Used RIF Installer . | . . . Robots Hacked . | . . . Non-combat . | . . . Combat . | . . . Robot Hacks Applied . | . . . Relay Couplers Released . | . . . Fabnet Peak Effective % . | . . . Robots Rewired . | . . . Allies Hacked . | . . . Hacks Repelled . | . . . Allies | -11 -10 -10 -------- Run | Yrd Mat Sub Total Allies . | . . . Largest Group . | . . . Highest-Rated Group . | . . . Highest-Rated Ally . | . . . Total Orders . | . . . Ally Attacks . | . . . Total Damage . | . . . Kills . | . . . Allies Corrupted . | . . . Allies Melted . | . . . Intel | -11 -10 -10 ------- Run | Yrd Mat Sub Robot Analysis Total . | . . . Derelict Logs Recovered . | . . . Drone Launches . | . . . Drone Recoveries . | . . . Exploration | -11 -10 -10 ------------- Run | Yrd Mat Sub Turns Passed 2896 | 73 2678 145 Spaces Moved 1519 | 42 1364 113 Core 11 | 11 . . Treads 176 | . 176 . Legs . | . . . Wheels 1332 | 31 1188 113 Hover . | . . . Flight . | . . . Fastest Speed 50 | 50 100 115 Average Speed 124 | 88 126 115 Slowest Speed 240 | 100 240 115 Overloaded Moves . | . . . Propulsion Burnouts . | . . . Robots Hopped . | . . . Cave-ins Triggered . | . . . Exploration Rate (%) 37 | 3 97 11 Regions Visited 2 Branch Regions 1 Pre-discovered Areas . | . . . Known Exits Taken . | . . . Unknown Exits Taken 2 | 1 1 . Scrap Searched . | . . . Spaces Dug . | . . . Terrain Destroyed 102 | . 70 32 Melee . | . . . Projectile 2 | . 2 . AOE 100 | . 68 32 Terrain Rammed . | . . . Walls Destroyed . | . . . Machines Disabled . | . . . Actions | -11 -10 -10 --------- Run | Yrd Mat Sub Total 2403 | 76 2208 119 Wait 719 | 23 696 . Move 1517 | 41 1363 113 Hop . | . . . Pick Up 43 | 6 37 . Fast Attach 3 | 3 . . Attach 10 | 3 7 . Detach . | . . . Swap 29 | . 28 1 Drop 15 | . 15 . Fire 67 | . 62 5 Melee . | . . . Ram . | . . . Kick . | . . . Crush . | . . . Escape Stasis . | . . . Rewire . | . . . Trap . | . . . Miscellaneous . | . . . Route ------- -11/Scrapyard -10/Materials (discovered 5 exits: [*Mat x3] / [*Min] / [*Sub]) -10/Subcaves History --------- Turn | Location | Event 29 | -11/Scrapyard | Discovered new exit (range 15) 74 | -11/Scrapyard | Entered Materials 301 | -10/Materials | Build established: Mutant 544 | -10/Materials | Discovered new exit (range 15) 824 | -10/Materials | Discovered new exit (range 15) 1016 | -10/Materials | Destroyed 7 combat bots 1026 | -10/Materials | Lost 3 parts (1p1u1w) 1288 | -10/Materials | Core integrity fell below 50% 1345 | -10/Materials | Discovered new exit (range 12) 1513 | -10/Materials | Discovered new exit (range 16) 1906 | -10/Materials | Discovered new exit (range 15) 2752 | -10/Materials | Entered Subcaves 2861 | -10/Subcaves | Core integrity fell below 20% 2897 | -10/Subcaves | Destroyed by Piercing Trap Last Messages --------------- 02814_ Acquired 19 matter. 02816_ Acquired 6 matter. 02819_ Subatomizers dissect the Sub. Laser. 02820_ Acquired 12 matter. 02823_ Acquired 15 matter. 02829_ Acquired 5 matter. 02830_ Acquired 9 matter. 02832_ Subatomizers dissect the Sub. Laser. 02832_ Acquired 14 matter. 02843_ Acquired 10 matter. 02846_ Acquired 5 matter. 02861_ EM Pulse Gun destroyed. 02866_ LY-GDJ(R) destroyed. 02868_ Subatomizers dissect the Sub. Optics. 02873_ Acquired 20 matter. 02875_ Acquired 9 matter. 02880_ Subatomizers dissect the Sub. Optics. 02897_ Triggered Piercing Trap. 02897_ Spikes shoot up from the floor. 02897_ Critical hit (Impale). Map ----- +----------------------------------------------------+ | ???#########?????????????????????????????????????? | | ???## #########?????????????????????????????????? | | ??### ##########?????????????????????????????? | | ?#### # #######????????????????????????????? | | ?### #######"" ?????????????????????? | | ### ######""??????????????????????? | | ### ### """ ????????????????????? | | ## ##### "" ????????????????????? | | ## ###### ### ?????????????????????? | | ## ##?### & ! ###?????????????????????? | | # ###??## !& "###?????????????????????? | | ####??### ! " ##?????????????????????? | | ####???###### ###????????????????????? | | #######?????##### """ ###????????????????????? | | #########?????????## "" ##????????????????????? | | # ####????????????## " ###???????????????????? | | ###????????????## " #####?? ##????????????? | | ##????????????## " ### ""##????????????? | | ###????????????### ## ????????????? | | ###?????????????### ###?????????????? | | ##??????????????## ### ###??????????????? | | ##??????????????## ##### ####??????????????? | | ###?????????????## ^ #### ####???????????????? | | ###?????????????### ### ##????????????????? | | ##?????????????#### ##????????????????? | | #####??????????????### @ ###????????????????? | | #####???????????????### ##????????????????? | | ##??????????????????### # ####????????????????? | | ######???????????????## #######????????????????? | | ######???????????????## #####??????????????????? | | # ##???????????????### ##?????????????????????? | | ###??????????????? ### ##?????????????????????? | | # ##???????????????? #####?????????????????????? | | ###?????????????????#####?????????????????????? | | ###???????????????????????????????????????????? | | ##????????????????????????????????????????????? | | # ##????????????????????????????????????????????? | | ##????????????????????????????????????????????? | | ###????????????????????????????????????????????? | | ###????????????????????????????????????????????? | | ##?????????????????????????????????????????????? | | ##?????????????????????????????????????????????? | | ###?????????????????????????????????????????????? | | ####?????????????????????????????????????????????? | | ###??????????????????????????????????????????????? | | #????????????????????????????????????????????????? | | ?????????????????????????????????????????????????? | | ?????????????????????????????????????????????????? | | ?????????????????????????????????????????????????? | | ?????????????????????????????????????????????????? | +----------------------------------------------------+ Best States ------------- Heat Dissipation 25 Energy Generation 10 Energy Capacity 250 Matter Stores 300 Matter Capacity 300 Sight Range 16 Terrain Scan Density 10 Weapon Shielding 33 Evasion (%) 50 Recoil Reduction 2 Trap Extractor Capacity 4 Item Schematics ----------------- None Robot Schematics ------------------ None Fabricated ------------ Nothing Alien Tech Used ----------------- None Achievements -------------- None Challenges ------------ None Game ------ Seed BiometalAnalysisWheel Manual? 0 Play Time 00:22:12 Cumulative 28.6 hours Start 2025.04.25 @ 20:37:00 End 2025.04.25 @ 20:59:36 Sessions 1 Manual Loads 0 Difficulty Rogue Special Mode None Game No. 53 Rogue 53 Adventurer 0 Explorer 0 Win Type - Total 0 Types 0/0/0/0/0/0/0/0/0 Lore% 16 Gallery% 18 Achievement% 17 Wizard Run 0 Options --------- Layout 0 ASCII 0 Keyboard 0 Movement Mouse Keybinds 1 Fullscreen 2 Font 28/SmallcapsGlow Map View 84x54 Zoom Use 0% Tactical HUD 1 Map Filters NONE Filters NONE Steam 1 RUN: c6200c9f-eb5e-4525-bd02-6378c250abcb